[Event "Titled Tuesday Blitz November 29 Late 2022"]
[White "Hardaway, Brewington"]
[Black "Al-Tarboush, Ward"]
[WhiteFideId "30941849"]
[BlackFideId "7601450"]
[WhiteElo "2159"]
[BlackElo "2273"]
[Result "0-1"]
[Round "06"]
[TimeControl "180+1"]
[Date "2022.11.30"]
[WhiteClock "0:00:07"]
[BlackClock "0:00:08"]

1. Nf3 {[%clk 0:03:00]}  d5 {[%clk 0:02:59]} 2. e3 {[%clk 0:03:00]}  Nf6 {[%clk 0:03:00]} 3. c4 {[%clk 0:03:00]}  c6 {[%clk 0:03:00]} 4. Nc3 {[%clk 0:03:00]}  Nbd7 {[%clk 0:02:57]} 5. b3 {[%clk 0:03:00]}  e5 {[%clk 0:02:57]} 6. Bb2 {[%clk 0:02:57]}  Bd6 {[%clk 0:02:53]} 7. Qc2 {[%clk 0:02:53]}  O-O {[%clk 0:02:53]} 8. O-O-O {[%clk 0:02:49]}  a5 {[%clk 0:02:48]} 9. Rg1 {[%clk 0:02:46]}  a4 {[%clk 0:02:35]} 10. Nxa4 {[%clk 0:02:44]}  b5 {[%clk 0:02:35]} 11. cxb5 {[%clk 0:02:28]}  cxb5 {[%clk 0:02:35]} 12. Bxb5 {[%clk 0:02:28]}  Bb7 {[%clk 0:02:32]} 13. Kb1 {[%clk 0:02:16]}  Rc8 {[%clk 0:02:32]} 14. Qf5 {[%clk 0:02:15]}  d4 {[%clk 0:02:31]} 15. d3 {[%clk 0:02:11]}  Nb6 {[%clk 0:01:56]} 16. exd4 {[%clk 0:02:05]}  e4 {[%clk 0:01:56]} 17. Ne5 {[%clk 0:01:49]}  Nxa4 {[%clk 0:01:55]} 18. Bxa4 {[%clk 0:01:46]}  exd3 {[%clk 0:01:55]} 19. Nd7 {[%clk 0:01:44]}  Nxd7 {[%clk 0:01:31]} 20. Qxd7 {[%clk 0:01:42]}  Qb6 {[%clk 0:01:29]} 21. Qb5 {[%clk 0:01:40]}  Qa7 {[%clk 0:00:54]} 22. Qxd3 {[%clk 0:01:38]}  Qa8 {[%clk 0:00:55]} 23. f3 {[%clk 0:01:38]}  Bd5 {[%clk 0:00:43]} 24. Rc1 {[%clk 0:01:33]}  Rb8 {[%clk 0:00:42]} 25. Rge1 {[%clk 0:01:24]}  g6 {[%clk 0:00:40]} 26. h4 {[%clk 0:01:20]}  Bf4 {[%clk 0:00:38]} 27. Rc2 {[%clk 0:01:15]}  Rb4 {[%clk 0:00:33]} 28. h5 {[%clk 0:01:14]}  Rxa4 {[%clk 0:00:33]} 29. bxa4 {[%clk 0:01:10]}  Qxa4 {[%clk 0:00:34]} 30. Qa3 {[%clk 0:01:01]}  Qd7 {[%clk 0:00:30]} 31. Bc1 {[%clk 0:00:39]}  Ra8 {[%clk 0:00:15]} 32. Qc3 {[%clk 0:00:12]}  Qb5+ {[%clk 0:00:04]} 33. Ka1 {[%clk 0:00:09]}  Bd6 {[%clk 0:00:04]} 34. hxg6 {[%clk 0:00:05]}  hxg6 {[%clk 0:00:04]} 35. Bd2 {[%clk 0:00:03]}  Bb7 {[%clk 0:00:02]} 36. Rb1 {[%clk 0:00:02]}  Qa6 {[%clk 0:00:02]} 37. Qb3 {[%clk 0:00:03]}  Bc8 {[%clk 0:00:02]} 38. Qc4 {[%clk 0:00:03]}  Qa7 {[%clk 0:00:02]} 39. d5 {[%clk 0:00:02]}  Bf5 {[%clk 0:00:02]} 40. Rcb2 {[%clk 0:00:02]}  Bxb1 {[%clk 0:00:02]} 41. Kxb1 {[%clk 0:00:02]}  Be5 {[%clk 0:00:02]} 42. Rb3 {[%clk 0:00:02]}  Qg1+ {[%clk 0:00:02]} 43. Bc1 {[%clk 0:00:02]}  Qxg2 {[%clk 0:00:02]} 44. Qc2 {[%clk 0:00:02]}  Qf1 {[%clk 0:00:02]} 45. f4 {[%clk 0:00:02]}  Bf6 {[%clk 0:00:02]} 46. Qd3 {[%clk 0:00:01]}  Qf2 {[%clk 0:00:02]} 47. Qc2 {[%clk 0:00:02]}  Qf1 {[%clk 0:00:02]} 48. Qd3 {[%clk 0:00:02]}  Qf2 {[%clk 0:00:03]} 49. a4 {[%clk 0:00:03]}  Qa7 {[%clk 0:00:03]} 50. Ra3 {[%clk 0:00:02]}  Qb6+ {[%clk 0:00:03]} 51. Rb3 {[%clk 0:00:03]}  Qa7 {[%clk 0:00:03]} 52. Ra3 {[%clk 0:00:03]}  Rb8+ {[%clk 0:00:04]} 53. Ka2 {[%clk 0:00:04]}  Rc8 {[%clk 0:00:04]} 54. Bb2 {[%clk 0:00:04]}  Bxb2 {[%clk 0:00:03]} 55. Kxb2 {[%clk 0:00:04]}  Qf2+ {[%clk 0:00:04]} 56. Kb3 {[%clk 0:00:03]}  Rb8+ {[%clk 0:00:04]} 57. Kc4 {[%clk 0:00:03]}  Rc8+ {[%clk 0:00:05]} 58. Kb5 {[%clk 0:00:04]}  Qb2+ {[%clk 0:00:04]} 59. Rb3 {[%clk 0:00:04]}  Rb8+ {[%clk 0:00:05]} 60. Kc4 {[%clk 0:00:04]}  Qc1+ {[%clk 0:00:05]} 61. Qc3 {[%clk 0:00:02]}  Rc8+ {[%clk 0:00:05]} 62. Kd3 {[%clk 0:00:03]}  Rxc3+ {[%clk 0:00:06]} 63. Rxc3 {[%clk 0:00:04]}  Qd1+ {[%clk 0:00:06]} 64. Kc4 {[%clk 0:00:04]}  Qxa4+ {[%clk 0:00:06]} 65. Kc5 {[%clk 0:00:04]}  Qa5+ {[%clk 0:00:07]} 66. Kc4 {[%clk 0:00:05]}  Qa4+ {[%clk 0:00:07]} 67. Kc5 {[%clk 0:00:05]}  Qxf4 {[%clk 0:00:08]} 68. d6 {[%clk 0:00:06]}  Qe5+ {[%clk 0:00:08]} 69. Kc4 {[%clk 0:00:06]}  Qxd6 {[%clk 0:00:08]} 70. Rf3 {[%clk 0:00:07]}  Qe6+ {[%clk 0:00:08]} 0-1


[Site "https://www.chess.com"]

[Event "Titled Tuesday Blitz November 29 Late 2022"]
[White "Hoffmann, Asa"]
[Black "Arngrimsson, Dagur"]
[WhiteFideId "2001470"]
[BlackFideId "2301288"]
[WhiteElo "2117"]
[BlackElo "2286"]
[Result "1-0"]
[Round "06"]
[TimeControl "180+1"]
[Date "2022.11.30"]
[WhiteClock "0:01:17"]
[BlackClock "0:00:39"]

1. d4 {[%clk 0:02:56]}  d5 {[%clk 0:02:56]} 2. Bg5 {[%clk 0:02:51]}  c6 {[%clk 0:02:57]} 3. e3 {[%clk 0:02:50]}  Nd7 {[%clk 0:02:54]} 4. Bd3 {[%clk 0:02:42]}  Qb6 {[%clk 0:02:50]} 5. b3 {[%clk 0:02:42]}  e5 {[%clk 0:02:51]} 6. c3 {[%clk 0:02:35]}  e4 {[%clk 0:02:48]} 7. Bc2 {[%clk 0:02:34]}  h6 {[%clk 0:02:46]} 8. Bh4 {[%clk 0:02:34]}  Ngf6 {[%clk 0:02:46]} 9. Ne2 {[%clk 0:02:33]}  Be7 {[%clk 0:02:45]} 10. Nd2 {[%clk 0:02:32]}  O-O {[%clk 0:02:45]} 11. c4 {[%clk 0:02:29]}  c5 {[%clk 0:02:45]} 12. cxd5 {[%clk 0:02:25]}  cxd4 {[%clk 0:02:43]} 13. Nxd4 {[%clk 0:02:21]}  Nxd5 {[%clk 0:02:41]} 14. Bxe7 {[%clk 0:02:19]}  Nxe7 {[%clk 0:02:42]} 15. Nxe4 {[%clk 0:02:14]}  f5 {[%clk 0:02:35]} 16. Nd2 {[%clk 0:02:00]}  f4 {[%clk 0:02:35]} 17. Nc4 {[%clk 0:01:59]}  Qf6 {[%clk 0:02:23]} 18. O-O {[%clk 0:01:56]}  Ne5 {[%clk 0:02:21]} 19. Nxe5 {[%clk 0:01:54]}  Qxe5 {[%clk 0:02:22]} 20. Qd3 {[%clk 0:01:52]}  Nf5 {[%clk 0:02:17]} 21. Qe4 {[%clk 0:01:38]}  Qc5 {[%clk 0:01:49]} 22. Rac1 {[%clk 0:01:36]}  Bd7 {[%clk 0:01:33]} 23. Ne6 {[%clk 0:01:35]}  Qe7 {[%clk 0:01:27]} 24. Nxf8 {[%clk 0:01:33]}  Qxf8 {[%clk 0:01:23]} 25. Qxf4 {[%clk 0:01:31]}  Be6 {[%clk 0:01:06]} 26. Bxf5 {[%clk 0:01:30]}  Bxf5 {[%clk 0:01:05]} 27. e4 {[%clk 0:01:29]}  Bg6 {[%clk 0:01:04]} 28. Qxf8+ {[%clk 0:01:29]}  Kxf8 {[%clk 0:01:04]} 29. f3 {[%clk 0:01:28]}  a5 {[%clk 0:01:03]} 30. Rfd1 {[%clk 0:01:28]}  a4 {[%clk 0:01:04]} 31. b4 {[%clk 0:01:28]}  a3 {[%clk 0:01:04]} 32. Rc3 {[%clk 0:01:26]}  Bf7 {[%clk 0:01:03]} 33. Rdd3 {[%clk 0:01:25]}  Ra4 {[%clk 0:00:59]} 34. Rxa3 {[%clk 0:01:20]}  Rxb4 {[%clk 0:00:59]} 35. Rd7 {[%clk 0:01:18]}  Ke8 {[%clk 0:00:39]} 36. Rc7 {[%clk 0:01:17]} 1-0


[Site "https://www.chess.com"]

[Event "Titled Tuesday Blitz November 29 Late 2022"]
[White "Iinuma, Paul Y"]
[Black "Chlpik, Martin"]
[WhiteFideId "2031809"]
[BlackFideId "14923351"]
[WhiteElo "2066"]
[BlackElo "2109"]
[Result "0-1"]
[Round "06"]
[TimeControl "180+1"]
[Date "2022.11.30"]
[WhiteClock "0:00:11"]
[BlackClock "0:00:06"]

1. e4 {[%clk 0:02:59]}  c5 {[%clk 0:02:09]} 2. Nf3 {[%clk 0:02:56]}  d6 {[%clk 0:01:58]} 3. d3 {[%clk 0:02:55]}  Nc6 {[%clk 0:01:57]} 4. Nbd2 {[%clk 0:02:56]}  g6 {[%clk 0:01:57]} 5. g3 {[%clk 0:02:57]}  Bg7 {[%clk 0:01:58]} 6. Bg2 {[%clk 0:02:58]}  Nf6 {[%clk 0:01:57]} 7. O-O {[%clk 0:02:58]}  O-O {[%clk 0:01:58]} 8. Re1 {[%clk 0:02:58]}  Rb8 {[%clk 0:01:58]} 9. a4 {[%clk 0:02:53]}  a6 {[%clk 0:01:55]} 10. c3 {[%clk 0:02:53]}  b5 {[%clk 0:01:54]} 11. axb5 {[%clk 0:02:53]}  axb5 {[%clk 0:01:55]} 12. h3 {[%clk 0:02:34]}  b4 {[%clk 0:01:55]} 13. d4 {[%clk 0:02:27]}  bxc3 {[%clk 0:01:50]} 14. bxc3 {[%clk 0:02:28]}  cxd4 {[%clk 0:01:51]} 15. cxd4 {[%clk 0:02:28]}  d5 {[%clk 0:01:50]} 16. e5 {[%clk 0:02:27]}  Ne8 {[%clk 0:01:48]} 17. Ba3 {[%clk 0:02:23]}  Nc7 {[%clk 0:01:47]} 18. Nb3 {[%clk 0:02:21]}  Nb5 {[%clk 0:01:41]} 19. Bc5 {[%clk 0:02:20]}  Bf5 {[%clk 0:01:36]} 20. Ng5 {[%clk 0:02:08]}  Nc3 {[%clk 0:01:34]} 21. Qc1 {[%clk 0:01:40]}  Rxb3 {[%clk 0:01:33]} 22. g4 {[%clk 0:01:41]}  Be4 {[%clk 0:01:23]} 23. f3 {[%clk 0:01:39]}  Bd3 {[%clk 0:01:20]} 24. Re3 {[%clk 0:01:39]}  Bh6 {[%clk 0:00:59]} 25. f4 {[%clk 0:01:21]}  e6 {[%clk 0:00:53]} 26. Bxf8 {[%clk 0:01:09]}  Bxg5 {[%clk 0:00:51]} 27. fxg5 {[%clk 0:01:09]}  Kxf8 {[%clk 0:00:43]} 28. Kh1 {[%clk 0:01:06]}  Nb4 {[%clk 0:00:35]} 29. Rf3 {[%clk 0:00:59]}  Be4 {[%clk 0:00:31]} 30. Rxc3 {[%clk 0:00:57]}  Bxg2+ {[%clk 0:00:14]} 31. Kxg2 {[%clk 0:00:57]}  Nd3 {[%clk 0:00:11]} 32. Qc2 {[%clk 0:00:45]}  Rb2 {[%clk 0:00:09]} 33. Qxb2 {[%clk 0:00:33]}  Nxb2 {[%clk 0:00:10]} 34. Rb3 {[%clk 0:00:26]}  Nc4 {[%clk 0:00:09]} 35. h4 {[%clk 0:00:26]}  Qc7 {[%clk 0:00:08]} 36. Rab1 {[%clk 0:00:18]}  Nd2 {[%clk 0:00:06]} 37. Rb8+ {[%clk 0:00:18]}  Kg7 {[%clk 0:00:06]} 38. R1b2 {[%clk 0:00:14]}  Qc3 {[%clk 0:00:06]} 39. R8b7 {[%clk 0:00:11]}  Qf3+ {[%clk 0:00:06]} 40. Kg1 {[%clk 0:00:11]}  Ne4 {[%clk 0:00:05]} 41. Rg2 {[%clk 0:00:10]}  Qd1+ {[%clk 0:00:05]} 42. Kh2 {[%clk 0:00:11]}  Qxd4 {[%clk 0:00:05]} 43. Rc7 {[%clk 0:00:09]}  Qxe5+ {[%clk 0:00:06]} 44. Kh3 {[%clk 0:00:10]}  Qxc7 {[%clk 0:00:07]} 45. Rg1 {[%clk 0:00:10]}  Qc3+ {[%clk 0:00:07]} 46. Kg2 {[%clk 0:00:10]}  Qd2+ {[%clk 0:00:07]} 47. Kh1 {[%clk 0:00:11]}  Nf2+ {[%clk 0:00:06]} 48. Kg2 {[%clk 0:00:11]}  Nxg4+ {[%clk 0:00:07]} 49. Kg3 {[%clk 0:00:11]}  Qd4 {[%clk 0:00:06]} 50. Kh3 {[%clk 0:00:11]}  Ne5 {[%clk 0:00:06]} 51. h5 {[%clk 0:00:11]}  Qxg1 {[%clk 0:00:07]} 52. h6+ {[%clk 0:00:11]}  Kg8 {[%clk 0:00:06]} 53. Kh4 {[%clk 0:00:11]}  Qg4# {[%clk 0:00:06]} 0-1


[Site "https://www.chess.com"]

[Event "Titled Tuesday Blitz November 29 Late 2022"]
[White "Ilkhomi, Jaloliddin"]
[Black "Tanenbaum, Zachary"]
[WhiteFideId "14700948"]
[BlackFideId "2060850"]
[WhiteElo "2045"]
[BlackElo "2175"]
[Result "1/2-1/2"]
[Round "06"]
[TimeControl "180+1"]
[Date "2022.11.30"]
[WhiteClock "0:00:09"]
[BlackClock "0:00:07"]

1. d4 {[%clk 0:02:59]}  d5 {[%clk 0:02:59]} 2. Bf4 {[%clk 0:02:55]}  Nf6 {[%clk 0:02:59]} 3. e3 {[%clk 0:02:55]}  c5 {[%clk 0:02:59]} 4. Nd2 {[%clk 0:02:55]}  Nc6 {[%clk 0:02:57]} 5. c3 {[%clk 0:02:52]}  Qb6 {[%clk 0:02:57]} 6. Qb3 {[%clk 0:02:47]}  c4 {[%clk 0:02:56]} 7. Qc2 {[%clk 0:02:47]}  g6 {[%clk 0:02:57]} 8. e4 {[%clk 0:02:47]}  dxe4 {[%clk 0:02:56]} 9. Nxc4 {[%clk 0:02:46]}  Qd8 {[%clk 0:02:57]} 10. Ne3 {[%clk 0:02:44]}  Bg7 {[%clk 0:02:44]} 11. h3 {[%clk 0:02:40]}  Bd7 {[%clk 0:02:39]} 12. Bc4 {[%clk 0:02:37]}  Rc8 {[%clk 0:02:36]} 13. Ne2 {[%clk 0:02:13]}  Na5 {[%clk 0:02:28]} 14. Bb3 {[%clk 0:02:08]}  Nxb3 {[%clk 0:02:27]} 15. Qxb3 {[%clk 0:02:09]}  Bc6 {[%clk 0:02:16]} 16. Be5 {[%clk 0:01:56]}  O-O {[%clk 0:02:16]} 17. O-O {[%clk 0:01:47]}  Nd5 {[%clk 0:02:04]} 18. Bxg7 {[%clk 0:01:45]}  Kxg7 {[%clk 0:02:05]} 19. c4 {[%clk 0:01:35]}  Nxe3 {[%clk 0:02:00]} 20. fxe3 {[%clk 0:01:36]}  e6 {[%clk 0:01:58]} 21. Rad1 {[%clk 0:01:30]}  Qa5 {[%clk 0:01:44]} 22. Nc3 {[%clk 0:01:20]}  Qg5 {[%clk 0:01:43]} 23. Rf4 {[%clk 0:01:14]}  f5 {[%clk 0:01:19]} 24. h4 {[%clk 0:00:48]}  Qe7 {[%clk 0:01:12]} 25. g3 {[%clk 0:00:37]}  e5 {[%clk 0:01:10]} 26. Rf2 {[%clk 0:00:34]}  exd4 {[%clk 0:01:09]} 27. Rxd4 {[%clk 0:00:35]}  Rfd8 {[%clk 0:01:02]} 28. Rfd2 {[%clk 0:00:33]}  Qc7 {[%clk 0:00:30]} 29. Kg2 {[%clk 0:00:31]}  h6 {[%clk 0:00:24]} 30. Nd5 {[%clk 0:00:26]}  Qe5 {[%clk 0:00:21]} 31. Nf4 {[%clk 0:00:19]}  Rxd4 {[%clk 0:00:20]} 32. Rxd4 {[%clk 0:00:17]}  g5 {[%clk 0:00:20]} 33. hxg5 {[%clk 0:00:17]}  hxg5 {[%clk 0:00:20]} 34. Ne2 {[%clk 0:00:18]}  Rh8 {[%clk 0:00:16]} 35. Qc3 {[%clk 0:00:18]}  Kg6 {[%clk 0:00:14]} 36. Rd2 {[%clk 0:00:15]}  Qxc3 {[%clk 0:00:13]} 37. Nxc3 {[%clk 0:00:15]}  Kf6 {[%clk 0:00:13]} 38. Nd5+ {[%clk 0:00:16]}  Ke5 {[%clk 0:00:12]} 39. Ne7 {[%clk 0:00:15]}  Rh7 {[%clk 0:00:10]} 40. Nxc6+ {[%clk 0:00:13]}  bxc6 {[%clk 0:00:11]} 41. b3 {[%clk 0:00:14]}  f4 {[%clk 0:00:10]} 42. gxf4+ {[%clk 0:00:13]}  gxf4 {[%clk 0:00:11]} 43. exf4+ {[%clk 0:00:13]}  Kxf4 {[%clk 0:00:12]} 44. Rd6 {[%clk 0:00:13]}  Rg7+ {[%clk 0:00:07]} 45. Kf2 {[%clk 0:00:11]}  e3+ {[%clk 0:00:07]} 46. Ke1 {[%clk 0:00:12]}  Rg1+ {[%clk 0:00:06]} 47. Ke2 {[%clk 0:00:13]}  Rg2+ {[%clk 0:00:07]} 48. Ke1 {[%clk 0:00:13]}  Rxa2 {[%clk 0:00:07]} 49. Rxc6 {[%clk 0:00:14]}  Ke4 {[%clk 0:00:06]} 50. Re6+ {[%clk 0:00:13]}  Kd3 {[%clk 0:00:07]} 51. Rd6+ {[%clk 0:00:13]}  Kc3 {[%clk 0:00:07]} 52. c5 {[%clk 0:00:11]}  Kxb3 {[%clk 0:00:06]} 53. c6 {[%clk 0:00:10]}  Rc2 {[%clk 0:00:06]} 54. Rd3+ {[%clk 0:00:08]}  Kb4 {[%clk 0:00:05]} 55. Rxe3 {[%clk 0:00:08]}  Rxc6 {[%clk 0:00:05]} 56. Kd2 {[%clk 0:00:08]}  a5 {[%clk 0:00:05]} 57. Re4+ {[%clk 0:00:09]}  Kb3 {[%clk 0:00:05]} 58. Re8 {[%clk 0:00:07]}  a4 {[%clk 0:00:06]} 59. Rb8+ {[%clk 0:00:07]}  Ka2 {[%clk 0:00:06]} 60. Ra8 {[%clk 0:00:07]}  a3 {[%clk 0:00:06]} 61. Rb8 {[%clk 0:00:07]}  Ka1 {[%clk 0:00:06]} 62. Kd1 {[%clk 0:00:07]}  a2 {[%clk 0:00:06]} 63. Kd2 {[%clk 0:00:08]}  Rh6 {[%clk 0:00:05]} 64. Kc2 {[%clk 0:00:08]}  Rh2+ {[%clk 0:00:05]} 65. Kc1 {[%clk 0:00:08]}  Rh1+ {[%clk 0:00:05]} 66. Kc2 {[%clk 0:00:08]}  Rh2+ {[%clk 0:00:06]} 67. Kc1 {[%clk 0:00:08]}  Rh4 {[%clk 0:00:06]} 68. Rc8 {[%clk 0:00:08]}  Rb4 {[%clk 0:00:05]} 69. Kc2 {[%clk 0:00:07]}  Rb6 {[%clk 0:00:05]} 70. Rc3 {[%clk 0:00:07]}  Rb2+ {[%clk 0:00:03]} 71. Kc1 {[%clk 0:00:07]}  Rb1+ {[%clk 0:00:04]} 72. Kc2 {[%clk 0:00:08]}  Rh1 {[%clk 0:00:04]} 73. Rc8 {[%clk 0:00:08]}  Rh2+ {[%clk 0:00:04]} 74. Kc1 {[%clk 0:00:09]}  Rh5 {[%clk 0:00:05]} 75. Kc2 {[%clk 0:00:09]}  Rb5 {[%clk 0:00:04]} 76. Kc1 {[%clk 0:00:09]}  Rb2 {[%clk 0:00:04]} 77. Rc7 {[%clk 0:00:09]}  Rg2 {[%clk 0:00:03]} 78. Rc8 {[%clk 0:00:09]}  Rg1+ {[%clk 0:00:03]} 79. Kc2 {[%clk 0:00:09]}  Rg6 {[%clk 0:00:03]} 80. Kc1 {[%clk 0:00:07]}  Rg7 {[%clk 0:00:03]} 81. Kc2 {[%clk 0:00:07]}  Rg2+ {[%clk 0:00:04]} 82. Kc1 {[%clk 0:00:07]}  Rg4 {[%clk 0:00:04]} 83. Kc2 {[%clk 0:00:07]}  Rb4 {[%clk 0:00:05]} 84. Kc1 {[%clk 0:00:07]}  Rb7 {[%clk 0:00:06]} 85. Kc2 {[%clk 0:00:08]}  Rb2+ {[%clk 0:00:06]} 86. Kc1 {[%clk 0:00:08]}  Rb1+ {[%clk 0:00:06]} 87. Kc2 {[%clk 0:00:08]}  Rb5 {[%clk 0:00:07]} 88. Rc7 {[%clk 0:00:08]}  Ra5 {[%clk 0:00:07]} 89. Kc1 {[%clk 0:00:08]}  Ra8 {[%clk 0:00:07]} 90. Kc2 {[%clk 0:00:08]}  Re8 {[%clk 0:00:07]} 91. Kc1 {[%clk 0:00:09]}  Rf8 {[%clk 0:00:07]} 92. Kc2 {[%clk 0:00:09]}  Rg8 {[%clk 0:00:07]} 93. Kc1 {[%clk 0:00:09]}  Rg2 {[%clk 0:00:07]} 94. Rc8 {[%clk 0:00:09]} 1/2-1/2


[Site "https://www.chess.com"]

[Event "Titled Tuesday Blitz November 29 Late 2022"]
[White "Jimenez, Joaquin"]
[Black "Adury, Anant"]
[WhiteFideId "109860"]
[BlackFideId "30964687"]
[WhiteElo "2163"]
[BlackElo "2175"]
[Result "0-1"]
[Round "06"]
[TimeControl "180+1"]
[Date "2022.11.30"]
[WhiteClock "0:00:51"]
[BlackClock "0:00:11"]

1. c4 {[%clk 0:03:00]}  c6 {[%clk 0:03:00]} 2. e4 {[%clk 0:02:58]}  d6 {[%clk 0:02:58]} 3. d4 {[%clk 0:02:56]}  e5 {[%clk 0:02:59]} 4. dxe5 {[%clk 0:02:56]}  dxe5 {[%clk 0:02:59]} 5. Qxd8+ {[%clk 0:02:55]}  Kxd8 {[%clk 0:03:00]} 6. Nc3 {[%clk 0:02:54]}  f6 {[%clk 0:02:58]} 7. Be3 {[%clk 0:02:54]}  Be6 {[%clk 0:02:58]} 8. O-O-O+ {[%clk 0:02:54]}  Kc7 {[%clk 0:02:59]} 9. f3 {[%clk 0:02:55]}  Bb4 {[%clk 0:02:59]} 10. Bd3 {[%clk 0:02:47]}  Na6 {[%clk 0:02:57]} 11. Nge2 {[%clk 0:02:46]}  Bc5 {[%clk 0:02:58]} 12. Bxc5 {[%clk 0:02:43]}  Nxc5 {[%clk 0:02:58]} 13. b3 {[%clk 0:02:44]}  a5 {[%clk 0:02:59]} 14. Kc2 {[%clk 0:02:43]}  Ne7 {[%clk 0:02:59]} 15. Rd2 {[%clk 0:02:41]}  h5 {[%clk 0:02:59]} 16. Nd1 {[%clk 0:02:39]}  h4 {[%clk 0:02:59]} 17. Ne3 {[%clk 0:02:39]}  g5 {[%clk 0:02:57]} 18. Nc3 {[%clk 0:02:36]}  Rhd8 {[%clk 0:02:56]} 19. Rhd1 {[%clk 0:02:34]}  Rd4 {[%clk 0:02:53]} 20. Ne2 {[%clk 0:02:31]}  Rd7 {[%clk 0:02:43]} 21. Nc3 {[%clk 0:02:29]}  Rd4 {[%clk 0:02:38]} 22. Bf1 {[%clk 0:02:23]}  Rad8 {[%clk 0:02:35]} 23. Ne2 {[%clk 0:02:22]}  Rxd2+ {[%clk 0:02:30]} 24. Rxd2 {[%clk 0:02:23]}  Rxd2+ {[%clk 0:02:26]} 25. Kxd2 {[%clk 0:02:24]}  b5 {[%clk 0:02:26]} 26. Nc1 {[%clk 0:02:19]}  Kb6 {[%clk 0:02:19]} 27. Kc3 {[%clk 0:02:14]}  b4+ {[%clk 0:02:14]} 28. Kb2 {[%clk 0:02:12]}  a4 {[%clk 0:02:13]} 29. a3 {[%clk 0:02:12]}  bxa3+ {[%clk 0:02:04]} 30. Kxa3 {[%clk 0:02:11]}  axb3 {[%clk 0:02:05]} 31. Nxb3 {[%clk 0:02:10]}  Nxb3 {[%clk 0:02:05]} 32. Kxb3 {[%clk 0:02:10]}  Kc5 {[%clk 0:02:06]} 33. Kc3 {[%clk 0:02:10]}  Nc8 {[%clk 0:02:06]} 34. Nd1 {[%clk 0:02:05]}  Kb6 {[%clk 0:01:54]} 35. Nb2 {[%clk 0:02:02]}  c5 {[%clk 0:01:53]} 36. Nd1 {[%clk 0:02:01]}  Ne7 {[%clk 0:01:51]} 37. Ne3 {[%clk 0:02:01]}  Nc6 {[%clk 0:01:51]} 38. Be2 {[%clk 0:01:54]}  Nd4 {[%clk 0:01:51]} 39. Bd1 {[%clk 0:01:55]}  Ka5 {[%clk 0:01:47]} 40. Nd5 {[%clk 0:01:52]}  Bxd5 {[%clk 0:01:43]} 41. cxd5 {[%clk 0:01:49]}  Kb6 {[%clk 0:01:43]} 42. Kc4 {[%clk 0:01:49]}  Nb5 {[%clk 0:01:42]} 43. d6 {[%clk 0:01:39]}  Nxd6+ {[%clk 0:01:14]} 44. Kd5 {[%clk 0:01:39]}  Kc7 {[%clk 0:00:35]} 45. Kxc5 {[%clk 0:01:38]}  Kd7 {[%clk 0:00:35]} 46. Kd5 {[%clk 0:01:36]}  Ke7 {[%clk 0:00:36]} 47. g3 {[%clk 0:01:35]}  Nf7 {[%clk 0:00:29]} 48. Kc4 {[%clk 0:01:23]}  Nd8 {[%clk 0:00:20]} 49. Ba4 {[%clk 0:01:20]}  Ne6 {[%clk 0:00:20]} 50. Kd3 {[%clk 0:01:18]}  Ng7 {[%clk 0:00:20]} 51. Ke3 {[%clk 0:01:18]}  Nh5 {[%clk 0:00:21]} 52. Kf2 {[%clk 0:01:17]}  Kf7 {[%clk 0:00:17]} 53. Bb3+ {[%clk 0:01:15]}  Kg6 {[%clk 0:00:17]} 54. Ba4 {[%clk 0:01:15]}  Kg7 {[%clk 0:00:16]} 55. Bd1 {[%clk 0:01:14]}  Kh6 {[%clk 0:00:14]} 56. Be2 {[%clk 0:01:13]}  Kg6 {[%clk 0:00:14]} 57. Bb5 {[%clk 0:01:12]}  Kh6 {[%clk 0:00:15]} 58. Bd7 {[%clk 0:01:09]}  Ng7 {[%clk 0:00:13]} 59. Bg4 {[%clk 0:01:08]}  hxg3+ {[%clk 0:00:11]} 60. hxg3 {[%clk 0:01:07]}  Kg6 {[%clk 0:00:11]} 61. Ke3 {[%clk 0:01:07]}  Kf7 {[%clk 0:00:12]} 62. Kd3 {[%clk 0:01:07]}  Ke7 {[%clk 0:00:12]} 63. Kc4 {[%clk 0:01:07]}  Kd6 {[%clk 0:00:13]} 64. Kd3 {[%clk 0:01:06]}  Ne8 {[%clk 0:00:13]} 65. Ke3 {[%clk 0:01:06]}  Kc5 {[%clk 0:00:13]} 66. Bd7 {[%clk 0:01:03]}  Nd6 {[%clk 0:00:12]} 67. Be6 {[%clk 0:01:01]}  Kc6 {[%clk 0:00:11]} 68. Bd5+ {[%clk 0:01:00]}  Kc5 {[%clk 0:00:12]} 69. Kd3 {[%clk 0:00:59]}  Nc8 {[%clk 0:00:09]} 70. Ke3 {[%clk 0:00:58]}  Nb6 {[%clk 0:00:10]} 71. Be6 {[%clk 0:00:58]}  Nc4+ {[%clk 0:00:10]} 72. Bxc4 {[%clk 0:00:58]}  Kxc4 {[%clk 0:00:11]} 73. f4 {[%clk 0:00:57]}  g4 {[%clk 0:00:11]} 74. f5 {[%clk 0:00:56]}  Kc3 {[%clk 0:00:11]} 75. Ke2 {[%clk 0:00:51]}  Kd4 {[%clk 0:00:11]} 0-1


[Site "https://www.chess.com"]

[Event "Titled Tuesday Blitz November 29 Late 2022"]
[White "Kalogeris, Ioannis"]
[Black "Han, Yichen"]
[WhiteFideId "4239563"]
[BlackFideId "1054430"]
[WhiteElo "2312"]
[BlackElo "2323"]
[Result "0-1"]
[Round "06"]
[TimeControl "180+1"]
[Date "2022.11.30"]
[WhiteClock "0:00:14"]
[BlackClock "0:00:10"]

1. e4 {[%clk 0:03:00]}  e5 {[%clk 0:02:58]} 2. Nf3 {[%clk 0:03:00]}  Nc6 {[%clk 0:02:58]} 3. Bc4 {[%clk 0:03:00]}  Nf6 {[%clk 0:02:55]} 4. d3 {[%clk 0:02:59]}  h6 {[%clk 0:02:55]} 5. c3 {[%clk 0:02:53]}  d6 {[%clk 0:02:54]} 6. a4 {[%clk 0:02:53]}  g5 {[%clk 0:02:54]} 7. Nfd2 {[%clk 0:02:46]}  Bg7 {[%clk 0:02:51]} 8. Nf1 {[%clk 0:02:45]}  d5 {[%clk 0:02:47]} 9. exd5 {[%clk 0:02:38]}  Nxd5 {[%clk 0:02:48]} 10. Ne3 {[%clk 0:02:32]}  Be6 {[%clk 0:02:35]} 11. Nd2 {[%clk 0:02:08]}  Nf4 {[%clk 0:02:17]} 12. O-O {[%clk 0:02:07]}  Bxc4 {[%clk 0:02:14]} 13. Ndxc4 {[%clk 0:02:05]}  Qxd3 {[%clk 0:02:11]} 14. Qg4 {[%clk 0:01:50]}  O-O {[%clk 0:02:03]} 15. Qf5 {[%clk 0:01:43]}  Rad8 {[%clk 0:01:37]} 16. g3 {[%clk 0:01:36]}  Ne2+ {[%clk 0:01:31]} 17. Kg2 {[%clk 0:01:36]}  Ne7 {[%clk 0:01:09]} 18. Qxd3 {[%clk 0:01:20]}  Rxd3 {[%clk 0:01:10]} 19. Ng4 {[%clk 0:01:14]}  Nxc1 {[%clk 0:01:01]} 20. Raxc1 {[%clk 0:01:14]}  Nc6 {[%clk 0:00:58]} 21. Rfe1 {[%clk 0:01:11]}  f6 {[%clk 0:00:40]} 22. b4 {[%clk 0:01:00]}  Ne7 {[%clk 0:00:34]} 23. Nge3 {[%clk 0:00:50]}  f5 {[%clk 0:00:31]} 24. Nd1 {[%clk 0:00:47]}  Ng6 {[%clk 0:00:30]} 25. Ndb2 {[%clk 0:00:46]}  Rdd8 {[%clk 0:00:29]} 26. a5 {[%clk 0:00:44]}  e4 {[%clk 0:00:30]} 27. Na4 {[%clk 0:00:43]}  b6 {[%clk 0:00:29]} 28. b5 {[%clk 0:00:39]}  Rfe8 {[%clk 0:00:27]} 29. axb6 {[%clk 0:00:37]}  axb6 {[%clk 0:00:26]} 30. Nab2 {[%clk 0:00:38]}  f4 {[%clk 0:00:26]} 31. Kh3 {[%clk 0:00:36]}  h5 {[%clk 0:00:24]} 32. g4 {[%clk 0:00:34]}  h4 {[%clk 0:00:21]} 33. Kg2 {[%clk 0:00:31]}  f3+ {[%clk 0:00:17]} 34. Kf1 {[%clk 0:00:32]}  Nf4 {[%clk 0:00:16]} 35. Re3 {[%clk 0:00:30]}  Ne2 {[%clk 0:00:16]} 36. Rxe2 {[%clk 0:00:29]}  fxe2+ {[%clk 0:00:16]} 37. Kxe2 {[%clk 0:00:30]}  Be5 {[%clk 0:00:15]} 38. h3 {[%clk 0:00:29]}  Bf4 {[%clk 0:00:16]} 39. Ra1 {[%clk 0:00:29]}  Rd5 {[%clk 0:00:16]} 40. Ra7 {[%clk 0:00:28]}  Rxb5 {[%clk 0:00:16]} 41. Ra4 {[%clk 0:00:24]}  e3 {[%clk 0:00:15]} 42. fxe3 {[%clk 0:00:24]}  Bxe3 {[%clk 0:00:16]} 43. Nxe3 {[%clk 0:00:23]}  Rxb2+ {[%clk 0:00:16]} 44. Kd3 {[%clk 0:00:23]}  Rh2 {[%clk 0:00:17]} 45. Nd5 {[%clk 0:00:19]}  Rd8 {[%clk 0:00:16]} 46. Ke4 {[%clk 0:00:16]}  Rxh3 {[%clk 0:00:12]} 47. Ne7+ {[%clk 0:00:14]}  Kf7 {[%clk 0:00:12]} 48. Nf5 {[%clk 0:00:15]}  Rxc3 {[%clk 0:00:10]} 49. Ra7 {[%clk 0:00:15]}  Rc5 {[%clk 0:00:10]} 50. Rb7 {[%clk 0:00:14]}  Re8+ {[%clk 0:00:10]} 51. Kf3 {[%clk 0:00:14]}  Rd8 {[%clk 0:00:10]} 52. Nh6+ {[%clk 0:00:14]}  Kg6 {[%clk 0:00:09]} 53. Nf5 {[%clk 0:00:14]}  Rd3+ {[%clk 0:00:10]} 0-1


[Site "https://www.chess.com"]